bitfinex-derivatives/quotes_ETHF0:USTF0_20220106
["timestamp","ask_amount","ask_price","bid_price","bid_amount"]
[1641485733997,0.384472,3410.8,3410.2,0.397182]
[1641485734397,1.46565244,3412.0,3410.2,0.397182]
[1641485734598,1.5,3412.4,3410.2,1.049382]
[1641485734799,1.5,3412.6,3410.3,12.7]
[1641485735006,1.4652122,3413.0,3411.1,1.4652122]
[1641485735297,1.5,3413.7,3411.8,1.46489024]
[1641485735498,2.00479,3413.8,3413.1,2.00479]
[1641485735699,1.5,3413.2,3413.1,2.70329]
[1641485736100,1.884472,3413.2,3413.1,0.6985]
[1641485736302,2.281654,3413.2,3413.1,0.6985]
[1641485736703,2.00479,3413.8,3413.1,0.6985]
[1641485736902,1.46503189,3413.4,3412.7,2.00479]
[1641485737302,2.00479,3413.8,3413.1,1.5]
[1641485737505,2.00479,3413.8,3413.1,2.82569]
[1641485737905,2.00479,3413.8,3413.2,0.397182]
[1641485738305,13.013,3415.9,3413.2,0.397182]
[1641485738306,5.33839901,3416.0,3413.2,0.397182]
[1641485738507,5.33839901,3416.0,3413.8,12.7]
[1641485738708,5.462,3416.0,3413.8,13.2491]
[1641485738907,5.462,3416.0,3414.1,1.46400666]
[1641485739106,9.99999999,3414.4,3413.1,2.82569]
[1641485739308,5.462,3415.0,3413.1,3.50479]
[1641485739507,2.00479,3414.7,3413.9,2.00479]
[1641485739707,2.00479,3414.7,3414.0,0.397182]
[1641485740307,0.384472,3414.6,3414.1,0.397182]
[1641485740507,5.462,3415.9,3414.1,1.062782]
[1641485740908,9.99999999,3415.8,3414.1,1.062782]
[1641485741106,6.92609669,3415.9,3414.1,1.062782]
[1641485741310,6.72445486,3422.0,3415.0,1.5]
[1641485741511,2.00479,3415.8,3415.0,2.71539]
[1641485741811,2.00479,3415.8,3415.1,0.397182]
[1641485742410,0.384472,3415.7,3415.1,0.781654]
[1641485742612,0.384472,3415.7,3414.6,2.00479]
[1641485743612,2.00479,3415.3,3414.6,2.00479]
[1641485743913,9.99999999,3415.1,3414.2,2.00479]
[1641485744112,9.91247696,3414.6,3412.3,1.58752303]
[1641485744318,0.7515,3415.1,3413.5,0.14552303]
[1641485744515,1.35447697,3415.4,3413.4,12.7]
[1641485744714,1.35447697,3415.4,3413.3,0.604]
[1641485744915,1.97537697,3415.4,3413.3,0.604]
[1641485745117,1.97537697,3415.4,3413.3,13.304]
[1641485745316,3.35926697,3415.8,3413.8,0.14552303]
[1641485745517,2.00479,3415.3,3414.4,2.00479]
[1641485746217,2.00479,3415.3,3414.2,12.84552303]
[1641485746418,2.00479,3415.8,3414.8,0.14552303]
[1641485746616,2.00479,3415.8,3414.9,12.7]
[1641485746819,2.00479,3415.8,3415.1,1.46359955]
[1641485747017,2.00479,3415.8,3415.2,0.781654]
[1641485747218,2.389262,3415.8,3415.2,0.781654]
[1641485747616,2.389262,3415.8,3415.2,2.786444]
[1641485747819,3.74373897,3415.8,3415.2,2.786444]
[1641485748018,3.74373897,3415.8,3414.0,0.6209]
[1641485748019,10.4355696,3415.8,3414.0,0.6209]
[1641485748218,1.04636961,3415.8,3413.6,1.5]
[1641485748418,0.6108,3415.8,3414.5,12.7]
[1641485748617,0.6108,3415.8,3414.5,13.471]
[1641485749018,4.96479,3416.3,3415.3,1.5]
[1641485749218,4.96479,3416.3,3415.3,0.8123]
[1641485749420,2.00479,3416.3,3415.3,0.8123]
[1641485749617,2.00479,3416.3,3415.6,2.00479]
[1641485749817,5.349262,3416.3,3415.7,0.397182]
[1641485750219,2.389262,3416.3,3415.7,0.397182]
[1641485750418,2.00479,3416.8,3416.1,1.5]
[1641485750619,0.4449,3420.5,3416.1,0.7522]
[1641485750823,9.99999999,3418.9,3416.1,2.2522]
[1641485751017,9.99999999,3418.8,3416.2,12.7]
[1641485751219,1.0648,3419.3,3417.1,1.5]
[1641485751418,33.4619,3421.9,3417.1,1.5]
[1641485751419,32.1619,3419.8,3417.1,2.277]
[1641485751620,2.00479,3418.9,3418.1,2.00479]
[1641485751821,2.00479,3418.9,3418.2,0.397182]
[1641485752022,1.4624651,3419.7,3418.2,1.897182]
[1641485752223,1.4624651,3419.7,3418.2,0.397182]
[1641485752524,1.46212084,3420.5,3418.5,1.46212084]
[1641485752920,1.46212084,3420.5,3418.2,1.46212083]
[1641485752921,9.99999999,3420.8,3418.1,2.69639]
[1641485753322,9.99999999,3420.5,3418.1,2.69639]
[1641485753723,2.00479,3419.3,3418.5,2.00479]
[1641485753923,2.00479,3419.3,3418.6,0.781654]
[1641485753924,0.384472,3419.2,3418.6,0.781654]
[1641485754125,0.384472,3419.2,3418.6,2.281654]
[1641485755127,0.384472,3419.2,3418.5,2.00479]
[1641485755325,1.4627432,3419.0,3418.5,2.00479]
[1641485755525,0.384472,3419.2,3418.5,2.00479]
[1641485755936,2.37553123,3419.1,3418.5,2.00479]
[1641485757028,0.384472,3419.2,3418.5,2.00479]
[1641485757428,0.384472,3419.2,3416.7,1.5]
[1641485757634,2.00479,3418.3,3417.5,2.00479]
[1641485757828,0.384472,3418.2,3417.5,2.00479]
[1641485758229,0.384472,3418.2,3417.2,2.00479]
[1641485758432,0.384472,3418.2,3416.3,0.72322212]
[1641485758830,9.99999999,3418.1,3416.3,0.72322212]
[1641485759031,0.384472,3418.2,3416.3,0.72322212]
[1641485759230,0.384472,3418.2,3416.3,2.212e-05]
[1641485759432,0.384472,3418.2,3415.6,0.7006634]
[1641485759634,2.00479,3416.5,3415.9,1.5]
[1641485759831,2.00479,3416.5,3416.2,1.5]
[1641485760031,2.00479,3416.9,3416.3,0.459982]
[1641485760233,9.99999999,3419.5,3416.6,1.5]
[1641485760432,9.99999999,3420.0,3416.6,2.3762]
[1641485760834,9.99999999,3419.4,3416.6,2.3762]
[1641485761134,9.99999999,3419.7,3416.6,0.8762]
[1641485761335,9.99999999,3419.9,3416.7,1.5]
[1641485761534,9.99999999,3419.9,3416.6,0.8762]
[1641485761734,2.00479,3417.6,3416.8,2.00479]
[1641485761934,0.384472,3417.5,3416.9,0.781654]
[1641485762736,0.40522798,3417.6,3416.9,0.781654]
[1641485763335,2.00479,3418.0,3416.9,0.781654]
[1641485763536,2.00479,3418.0,3417.1,1.5]
[1641485763735,2.00479,3418.0,3417.2,2.00479]
[1641485764337,2.00479,3418.0,3417.3,0.397182]
[1641485764537,2.00479,3418.0,3417.3,1.242782]
[1641485765340,2.00479,3418.0,3417.4,1.5]
[1641485765540,2.00479,3418.0,3417.5,0.397182]
[1641485765841,2.00479,3418.4,3417.6,0.384472]
[1641485766039,2.00479,3418.4,3417.7,0.397182]
[1641485766640,2.00479,3418.4,3417.7,1.897182]
[1641485766839,2.00479,3418.4,3417.9,1.5]
[1641485767040,2.00479,3418.4,3418.0,0.397182]
[1641485767242,2.00479,3418.4,3418.0,1.226782]
[1641485767644,2.00479,3418.8,3418.0,3.231572]
[1641485767842,2.00479,3418.8,3418.0,2.83439]
[1641485768242,12.7,3418.7,3416.6,1.5]
[1641485768441,12.7,3418.7,3416.1,1.5]
[1641485768643,22.69999999,3418.7,3416.1,1.5]
[1641485768842,1.46323119,3417.9,3416.0,1.5]
[1641485769043,0.84579445,3418.6,3415.6,12.7]
[1641485769242,0.84579445,3418.6,3415.8,13.5018]
[1641485769443,0.84579445,3418.6,3416.1,1.5]
[1641485769644,2.00479,3417.9,3417.0,1.5]
[1641485769846,2.00479,3417.9,3417.3,0.781654]
[1641485770048,2.00479,3417.9,3417.3,0.397182]
[1641485771549,2.00479,3417.9,3417.3,1.050982]
[1641485771751,1.46336609,3417.6,3417.3,0.6538]
[1641485771948,1.46356527,3417.4,3415.6,2.96336609]
[1641485772149,0.8434,3417.6,3414.8,1.5]
[1641485772351,0.8434,3417.6,3414.3,35.91540135]
[1641485772352,12.7,3417.5,3414.3,35.91540135]
[1641485772751,12.7,3417.5,3414.6,1.5]
[1641485772949,1.31965123,3417.4,3414.4,12.7]
[1641485773149,1.31965123,3417.4,3414.7,1.5]
[1641485773351,12.7,3417.3,3414.4,1.5]
[1641485773551,22.69999999,3417.3,3414.2,1.72856833]
[1641485773752,1.46435396,3415.3,3415.1,2.00479]
[1641485773952,2.06905396,3415.3,3414.2,1.72856833]
[1641485774151,0.6047,3415.3,3414.2,1.72856833]
[1641485774351,0.6047,3415.3,3414.7,0.46510127]
[1641485775153,12.7,3416.0,3414.7,0.46510127]
[1641485775554,12.7,3416.0,3414.2,1.5]
[1641485775754,2.00479,3415.4,3414.6,2.00479]
[1641485776156,3.46908821,3415.4,3414.6,2.00479]
[1641485776355,3.46908821,3415.4,3414.2,3.50479]
[1641485776557,3.46909679,3415.4,3414.2,3.50479]
[1641485776958,1.46430679,3415.7,3415.1,1.5]
[1641485777156,2.00479,3416.3,3415.2,0.781654]
[1641485777560,2.00479,3416.3,3415.3,1.5]
[1641485777758,2.00479,3416.3,3415.3,3.50479]
[1641485777959,2.00479,3416.3,3415.3,2.00479]
[1641485778159,2.00479,3416.3,3415.3,3.50479]
[1641485778359,2.00479,3416.3,3415.3,2.00479]
[1641485778760,2.00479,3416.3,3415.0,2.00479]
[1641485778961,2.68369,3416.3,3414.3,1.5]
[1641485779161,2.68369,3416.3,3413.8,12.7]
[1641485779363,2.68369,3416.3,3412.6,36.6309]
[1641485779364,2.68369,3416.3,3415.0,1.5]
[1641485779564,2.68369,3416.3,3414.8,0.7034]
[1641485779765,2.00479,3415.9,3415.2,1.5]
[1641485779965,2.00479,3415.9,3415.3,0.781654]
[1641485780364,2.00479,3415.9,3415.3,0.397182]
[1641485780765,2.00479,3415.9,3415.1,2.00479]
[1641485781168,9.99999999,3415.5,3413.3,0.7046409]
[1641485781367,12.7,3415.2,3413.3,0.7046409]
[1641485781568,13.3656,3415.2,3413.3,0.7046409]
[1641485781768,14.70479,3413.8,3413.3,0.7046409]
[1641485781968,1.46503189,3413.7,3413.3,0.7046409]
[1641485782167,1.46522937,3413.4,3413.3,4.09e-05]
[1641485782367,12.7,3413.6,3412.6,4.09e-05]
[1641485782968,12.7,3413.1,3411.6,1.48770923]
[1641485783570,12.7,3413.1,3412.0,1.5]
[1641485783768,2.96,3413.5,3411.8,1.5]
[1641485783769,2.00479,3412.6,3411.8,1.5]
[1641485783968,15.66,3414.6,3412.5,1.5]
[1641485783969,1.46498038,3413.8,3412.5,1.5]
[1641485784168,1.46498038,3413.8,3412.5,0.7069]
[1641485785173,12.7,3413.7,3411.9,1.5]
[1641485785373,1.46529593,3413.1,3411.9,1.5]
[1641485785570,15.66,3413.7,3411.9,1.5]
[1641485785770,2.00479,3412.8,3412.6,0.4654355]
[1641485786971,2.00479,3412.8,3412.7,3.0]
[1641485787170,65.5997,3415.6,3412.7,3.6072]
[1641485787371,1.46455127,3414.8,3413.0,1.5]
[1641485787571,32.5388,3415.6,3413.0,1.5]
[1641485787773,2.00479,3414.6,3414.3,1.5]
[1641485787973,2.00479,3415.0,3414.4,0.459982]
[1641485788172,2.00479,3415.0,3413.8,2.00479]
[1641485788372,4.0,3414.7,3412.8,1.4803]
[1641485788573,4.0,3414.7,1673.5,28.91054921]
[1641485788574,1.46464136,3414.6,3414.1,1.4803]
[1641485788773,2.00479,3415.0,3412.1,32.8634]
[1641485789072,12.7,3414.9,3414.1,1.4803]
[1641485789471,12.7,3414.9,3413.0,1.5]
[1641485789472,1.46464136,3414.6,3413.0,1.5]
[1641485789673,2.00479,3414.1,3413.3,2.00479]
[1641485789971,2.00479,3414.1,3414.0,1.4803]
[1641485790173,2.00479,3414.1,3413.3,2.00479]
[1641485790372,12.7,3414.0,3413.3,2.00479]
[1641485790576,2.02449,3414.1,3412.1,1.4803]
[1641485790774,12.7,3414.0,3411.0,1.5]
[1641485790974,12.7,3414.0,3411.7,1.5]
[1641485791174,2.00479,3414.1,3412.0,1.5]
[1641485791380,2.00479,3414.1,3413.3,1.4803]
[1641485791674,2.00479,3413.6,3413.3,1.4803]
[1641485792086,2.00479,3414.1,3413.4,1.940282]
[1641485792276,2.00479,3414.1,3413.5,0.397182]
[1641485792475,2.00479,3414.1,3414.0,1.4803]
[1641485792874,2.00479,3414.1,3413.4,0.5964]
[1641485793077,2.00479,3414.1,3413.4,0.993582]
[1641485793276,2.00479,3414.1,3413.4,0.397182]
[1641485793474,2.00479,3414.1,3413.2,0.384472]
[1641485793675,2.00479,3413.6,3412.8,3.46934985]
[1641485793876,2.00479,3413.6,3412.9,0.397182]
[1641485794075,2.00479,3413.6,3413.0,0.384472]
[1641485794375,2.00479,3413.6,3412.5,2.00479]
[1641485794376,14.70479,3413.6,3412.5,2.00479]
[1641485794577,1.4653217,3413.0,3412.5,2.00479]
[1641485794775,15.49019,3413.6,3412.5,2.00479]
[1641485795176,15.49019,3413.6,3412.5,1.70779]
[1641485795677,1.46541403,3412.8,3412.5,1.70779]
[1641485796576,2.00479,3412.9,3412.6,0.459982]
[1641485796976,2.00479,3412.9,3412.5,1.70779]
[1641485797377,2.00479,3412.9,3412.8,1.4803]
[1641485797577,2.00479,3412.9,3412.8,2.790482]
[1641485797978,2.00479,3412.9,3412.8,3.187664]
[1641485798181,2.00479,3413.6,3412.8,3.187664]
[1641485798379,2.00479,3413.6,3412.8,1.707364]
[1641485798578,1.46516068,3413.4,3412.5,1.70779]
[1641485799880,2.00479,3412.9,3412.5,1.70779]
[1641485800883,12.7,3412.8,3412.5,1.70779]
[1641485801182,2.00479,3412.9,3412.4,1.4803]
[1641485801582,2.00479,3412.9,3412.8,1.4803]
[1641485801782,2.00479,3412.9,3412.6,1.4803]
[1641485802083,2.00479,3412.9,3412.8,1.4803]
[1641485802283,2.00479,3413.6,3412.8,1.4803]
[1641485802484,2.00479,3413.6,3412.9,0.397182]
[1641485802683,2.00479,3413.6,3412.9,1.140582]
[1641485802884,2.00479,3413.6,3412.9,0.7434]
[1641485803084,3.46985623,3413.6,3412.9,0.7434]
[1641485803287,16.16985623,3413.6,3412.9,0.7434]
[1641485803484,3.46985623,3413.6,3412.9,0.7434]
[1641485803684,3.46985623,3413.6,3412.1,1.4803]
[1641485803884,3.46985623,3413.6,3411.8,2.00479]
[1641485803885,2.00479,3413.2,3412.9,1.4803]
[1641485804084,2.00479,3413.2,3413.0,0.459982]
[1641485804484,2.00479,3413.2,3412.9,1.143872]
[1641485805090,2.00479,3413.2,3413.1,1.4803]
[1641485805287,1.01718872,3413.9,3413.1,1.4803]
[1641485805288,1.46487951,3414.0,3413.1,1.4803]
[1641485805486,1.46487951,3414.0,3413.0,0.459982]
[1641485805487,1.46487951,3414.0,3413.8,1.4803]
[1641485805687,1.46487951,3414.0,3413.8,0.7096]
[1641485805890,0.0197,3414.0,3413.1,2.00479]
[1641485806187,1.46538397,3413.2,3411.9,1.4803]
[1641485806388,12.7,3413.1,3411.9,1.4803]
[1641485806788,2.22615514,3413.2,3411.5,1.5]
[1641485806989,1.46525514,3413.2,3413.0,1.4803]
[1641485807389,1.46525514,3413.2,3412.8,0.384472]
[1641485807590,1.46525514,3413.2,3412.0,1.4803]
[1641485807789,0.0197,3414.0,3412.0,3.48509]
[1641485807790,2.00479,3412.8,3412.0,3.48509]
[1641485807991,2.00479,3412.8,3412.1,0.397182]
[1641485808989,2.00479,3412.8,3412.0,3.48509]
[1641485809191,2.00479,3412.8,3412.1,0.384472]
[1641485809396,2.00479,3412.8,3412.2,0.397182]
[1641485809592,14.70479,3412.8,3412.0,2.00479]
[1641485809792,15.54579,3412.8,3412.0,2.00479]
[1641485809993,1.46565888,3412.2,3411.7,2.00479]
[1641485810392,1.46565888,3412.2,3411.7,2.00079]
[1641485810591,1.46565888,3412.2,3410.6,33.4763]
[1641485810792,1.46565888,3412.2,3410.6,1.4803]
[1641485810999,15.54579,3412.8,3411.9,1.4803]
[1641485811199,16.17018256,3412.8,3410.9,2.96539256]
[1641485811400,1.46550638,3412.6,3411.1,1.5]
[1641485811601,14.70479,3412.8,3412.3,1.4803]
[1641485811800,2.00479,3412.4,3412.3,1.4803]
[1641485812200,2.00479,3412.4,3411.6,2.00479]
[1641485812403,1.46574696,3412.0,3411.2,2.00479]
[1641485812600,1.46574696,3412.0,3411.8,1.4803]
[1641485812800,12.7,3412.3,3411.8,1.4803]
[1641485813001,2.00479,3412.4,3412.2,1.4803]
[1641485813200,2.00479,3412.8,3412.2,1.940282]
[1641485813402,2.00479,3412.8,3412.4,1.4803]
[1641485813608,12.7,3412.7,3412.2,1.4803]
[1641485815203,12.7,3412.7,3411.3,1.4803]
[1641485815404,1.46571044,3412.1,3411.2,2.00479]
[1641485815605,13.5121,3412.7,3411.2,2.00479]
[1641485815803,2.00479,3412.0,3411.2,2.00479]
[1641485816006,12.7,3411.9,3411.2,2.00479]
[1641485816405,1.46582216,3411.8,3411.2,2.00479]
[1641485816804,12.7,3411.9,3411.6,1.4803]
[1641485817007,2.00479,3412.0,3411.6,1.4803]
[1641485817204,14.70479,3412.0,3411.2,2.00479]
[1641485817407,2.00479,3412.0,3411.3,0.384472]
[1641485817604,2.00479,3412.0,3411.2,2.00479]
[1641485817805,0.15833147,3411.7,3411.2,2.00479]
[1641485818507,0.15833147,3411.7,3411.4,1.4803]
[1641485818806,0.15833147,3411.7,3411.6,1.4803]
[1641485819006,0.15833147,3411.9,3411.6,1.4803]
[1641485819206,12.85833147,3411.9,3411.2,2.00479]
[1641485819505,0.15833147,3411.9,3411.2,3.48509]
[1641485819704,0.15833147,3411.9,3411.8,1.4803]
[1641485819705,3.147e-05,3411.9,3411.8,1.4803]
[1641485819904,1.21207436,3412.2,3411.8,2.056]
[1641485820104,1.21207436,3412.3,3412.1,1.4803]
[1641485820304,1.21207436,3412.3,3412.2,0.459982]
[1641485820504,1.21207436,3412.3,3411.8,0.5757]
[1641485821106,2.00437436,3412.3,3400.5,0.8262079]
[1641485821308,12.7,3412.2,3410.5,1.4803]
[1641485821507,12.7,3412.2,3410.8,0.70405322]
[1641485821907,14.70479,3411.9,3410.8,2.70884322]
[1641485822507,15.34499,3411.9,3410.8,2.70884322]
[1641485822908,0.7877992,3411.8,3410.8,2.00479]
[1641485823607,2.64499,3411.9,3411.7,1.4803]
[1641485823810,2.00479,3411.9,3411.7,1.940282]
[1641485824410,2.00479,3411.9,3411.7,2.337464]
[1641485824908,2.00479,3411.9,3411.3,2.00479]
[1641485826107,12.7,3411.8,3411.3,2.00479]
[1641485826307,2.00479,3411.9,3411.3,2.00479]
[1641485826808,2.00479,3411.9,3411.8,1.4803]
[1641485827107,2.00479,3411.9,3411.3,2.389262]
[1641485827308,2.00479,3411.9,3411.4,0.397182]
[1641485827508,2.00479,3411.9,3411.8,1.4803]
[1641485827709,2.00479,3411.9,3411.8,1.940282]
[1641485827908,1.21207436,3412.2,3411.8,1.877482]
[1641485828108,1.21207436,3412.3,3411.8,1.877482]
[1641485828914,1.21207436,3412.3,3412.2,1.4803]
[1641485829213,1.21207436,3412.3,3412.2,2.337464]
[1641485829511,3.21686436,3412.4,3412.2,2.337464]
[1641485830110,3.21686436,3412.4,3412.2,1.877482]
[1641485830309,3.21686436,3412.4,3412.2,0.397182]
[1641485830913,2.00479,3412.4,3412.2,0.397182]
[1641485831111,0.98852311,3412.7,3412.3,0.459982]
[1641485832111,0.98852311,3412.5,3412.3,1.940282]
[1641485832312,0.98852311,3412.5,3412.3,1.4803]
[1641485832514,0.98852311,3412.5,3411.1,1.32495322]
[1641485832711,1.62672311,3412.5,3411.4,1.4803]
[1641485832913,1.62672311,3412.5,3411.1,0.70405322]
[1641485833113,0.98852311,3412.4,3411.0,0.70405322]
[1641485833412,12.7,3412.3,3411.0,0.70405322]
[1641485833613,12.7,3412.3,3411.0,2.18435322]
[1641485834014,12.7,3411.7,3411.0,4.18914322]
[1641485834215,13.405,3411.7,3411.0,0.70405322]
[1641485834413,0.0197,3411.5,3411.0,0.70405322]
[1641485834614,1.46609723,3411.2,3411.0,0.70405322]
[1641485834815,13.405,3411.7,3411.0,0.70405322]
[1641485835014,12.7,3411.6,3411.0,1.4803]
[1641485835314,12.7,3411.6,3410.9,0.781654]
[1641485835513,1.46589521,3411.7,3410.9,0.397182]
[1641485835814,1.46589521,3411.7,3410.7,0.70405322]
[1641485836014,14.70479,3411.3,3410.7,0.70405322]
[1641485836214,14.70479,3411.3,3410.6,3.48509]
[1641485836413,2.00479,3411.3,3410.6,2.00479]
[1641485836613,2.00479,3411.3,3411.1,1.4803]
[1641485838114,2.00479,3411.3,3411.2,0.459982]
[1641485838315,2.00479,3411.3,3411.1,0.7448]
[1641485839016,2.00479,3411.3,3411.2,0.459982]
[1641485839418,2.00479,3411.3,3410.9,0.384472]
[1641485839817,2.00479,3411.3,3410.9,0.781654]
[1641485841820,2.00479,3411.3,3411.2,1.4803]
[1641485842021,2.00479,3411.3,3411.2,3.182764]
[1641485842619,0.98852311,3411.9,3411.2,4.682764]
[1641485842820,0.98852311,3411.9,3411.8,1.4803]
[1641485843022,0.98852311,3411.9,3411.8,2.721936]
[1641485843922,0.98852311,3412.2,3411.8,1.241636]
[1641485844122,0.98852311,3412.2,3411.9,2.00479]
[1641485844723,0.98852311,3412.2,3412.1,1.4803]
[1641485845224,0.98852311,3412.5,3412.1,1.940282]
[1641485845426,0.98852311,3412.5,3412.3,1.4803]
[1641485845824,0.98852311,3412.5,3411.9,2.389262]
[1641485846025,0.98852311,3412.5,3412.1,1.4803]
[1641485846224,0.98852311,3412.5,3412.4,1.4803]
[1641485846426,0.98852311,3412.5,3412.4,1.940282]
[1641485846624,1.13219261,3412.6,3412.4,0.397182]
[1641485846824,1.13219261,3412.6,3411.9,2.389262]
[1641485847034,1.13219261,3412.6,3411.9,3.48509]
[1641485847524,0.1436695,3412.6,3411.9,2.00479]
[1641485847724,1.21207436,3412.0,3411.9,2.70884322]
[1641485848226,1.21207436,3412.0,3411.9,3.16882522]
[1641485848426,1.21207436,3412.0,3411.9,2.70884322]
[1641485848927,1.21207436,3412.0,3411.8,0.70405322]
[1641485849128,1.21207436,3412.0,3411.8,1.16403522]
[1641485849328,1.21207436,3412.0,3411.8,0.70405322]
[1641485849830,1.45448923,3412.2,3411.8,0.70405322]
[1641485850029,1.81841483,3412.5,3411.7,0.70405322]
[1641485850030,1.45448923,3412.1,3411.7,0.70405322]
[1641485851030,1.45448923,3412.1,3411.6,4.97079722]
[1641485851232,1.24147626,3411.8,3411.6,4.57361522]
[1641485851433,1.24147626,3411.8,3411.6,2.70884322]
[1641485851830,1.24147626,3411.8,3411.6,4.18914322]
[1641485852634,1.24147626,3411.8,3411.7,1.16960629]
[1641485853835,1.24147626,3411.8,3411.7,1.62958829]
[1641485854034,1.24147626,3411.8,3411.7,1.16960629]
[1641485854435,1.24147626,3411.8,3411.7,1.56678829]
[1641485854637,1.24147626,3411.8,3411.7,2.27928829]
[1641485854834,1.24147626,3411.8,3411.7,2.73927029]
[1641485855035,1.24147626,3411.8,3411.7,3.12374229]
[1641485855637,1.24147626,3411.8,3411.7,1.95970707]
[1641485855837,0.993122,3411.8,3411.7,0.85002507]
[1641485856835,1.24147626,3412.0,3411.7,0.85002507]
[1641485857036,2.92012018,3412.3,3411.9,1.4803]
[1641485857238,1.45448923,3412.1,3411.9,1.4803]
[1641485857436,1.45448923,3412.1,3412.0,1.4803]
[1641485857635,1.45448923,3412.1,3411.7,1.57971902]
[1641485857837,1.45448923,3412.1,3412.0,1.4803]
[1641485858439,1.45448923,3412.1,3412.0,3.039664]
[1641485858641,0.1436695,3412.2,3412.0,3.039664]
[1641485858939,2.31887216,3412.4,3412.1,1.5]
[1641485859141,2.31887216,3412.4,3412.2,0.397182]
[1641485859343,2.31887216,3412.4,3412.3,2.9803]
[1641485859540,2.31887216,3412.4,3412.3,1.4803]
[1641485860141,2.37553123,3412.6,3412.4,0.384472]
[1641485860562,2.37553123,3412.6,3412.5,1.4803]
[1641485860740,1.86185444,3413.0,3412.5,1.877482]
[1641485860939,1.86185444,3413.0,3412.5,0.397182]
[1641485861340,1.86185444,3413.0,3412.9,1.4803]
[1641485861546,5.33553123,3413.2,3412.9,1.940282]
[1641485861744,5.33553123,3413.2,3412.8,0.835]
[1641485861941,5.33553123,3413.2,3412.7,0.72828917]
[1641485861942,2.96,3413.2,3412.7,0.72828917]
[1641485862342,12.7,3413.1,3412.7,0.72828917]
[1641485862942,3.39199455,3413.6,3413.0,1.4803]
[1641485863142,2.37553123,3413.2,3413.0,0.5613]
[1641485863342,2.37553123,3413.2,3413.1,1.940282]
[1641485863543,2.37553123,3413.2,3413.1,2.337464]
[1641485864142,2.37553123,3413.2,3413.1,6.347044]
[1641485864544,2.37553123,3413.8,3413.1,6.347044]
[1641485864743,2.37553123,3413.8,3413.7,1.4803]
[1641485865146,2.37553123,3413.8,3413.7,1.940282]
[1641485865544,2.37553123,3413.8,3413.7,1.4803]
[1641485865744,2.37553123,3414.0,3413.7,1.4803]
[1641485865944,2.37553123,3414.0,3413.8,0.459982]
[1641485866144,2.37553123,3414.0,3413.9,3.48509]
[1641485866945,2.37553123,3414.0,3413.9,3.945072]
[1641485867147,2.37553123,3414.1,3413.9,3.945072]
[1641485867346,2.37553123,3414.1,3414.0,0.397182]
[1641485868346,1.48894032,3414.1,3414.0,0.397182]
[1641485869147,1.48894032,3414.1,3413.9,3.37429665]
[1641485869348,1.8611754,3414.3,3413.9,2.00479]
[1641485869649,1.8611754,3414.2,3413.9,2.00479]
[1641485870648,3.4693284,3414.8,3414.0,0.397182]
[1641485870847,2.00479,3414.8,3414.6,1.36950665]
[1641485871248,2.00479,3414.8,3414.0,0.6268]
[1641485871451,2.00479,3414.8,3414.1,0.781654]
[1641485871649,2.00479,3414.8,3414.1,2.15116065]
[1641485871849,2.00479,3414.8,3414.1,0.781654]
[1641485872449,2.00479,3414.8,3414.7,1.36950665]
[1641485873049,2.00479,3415.1,3414.7,1.36950665]
[1641485873250,2.00479,3415.1,3415.0,1.36950665]
[1641485873448,14.70479,3415.1,3415.0,1.36950665]
[1641485873650,2.00479,3415.1,3415.0,1.36950665]
[1641485877258,2.00479,3415.1,3415.0,0.51812241]
[1641485878160,0.46114963,3415.2,3415.0,1.36257641]
[1641485878759,0.46114963,3415.2,3415.0,0.97810441]
[1641485879362,3.26657728,3415.3,3415.0,0.97810441]
[1641485879560,2.48110278,3415.2,3414.8,0.397182]
[1641485879767,2.48110278,3415.2,3415.1,0.51812241]
[1641485880163,2.48110278,3415.2,3415.1,2.52291241]
[1641485880763,2.48110278,3415.2,3415.1,2.00479]
[1641485880963,3.46298037,3415.2,3415.1,2.00479]
[1641485881164,3.46298037,3415.2,3414.4,2.00479]
[1641485881364,1.77807759,3415.2,3414.4,2.00479]
[1641485881765,0.98187759,3414.9,3414.4,2.00479]
[1641485882164,2.4463688,3414.9,3414.4,2.00479]
[1641485882365,12.7,3414.8,3414.4,2.00479]
[1641485882565,13.68187759,3414.8,3414.4,2.00479]
[1641485883566,2.48151099,3414.7,3414.4,2.00479]
[1641485884366,2.58922008,3414.7,3414.6,0.51812241]
[1641485884566,0.56885872,3414.7,3414.6,0.97810441]
[1641485884766,0.56885872,3414.7,3414.6,0.51365498]
[1641485884964,0.56885872,3414.7,3414.6,0.91083698]
[1641485885966,0.10770909,3414.7,3414.6,0.91083698]
[1641485886270,0.10770909,3414.7,3414.6,2.91562698]
[1641485887068,0.10770909,3414.7,3414.6,4.41562698]
[1641485887269,1.48870412,3414.7,3414.6,4.41562698]
[1641485887468,0.10770909,3415.2,3414.6,4.41562698]
[1641485887669,3.10137848,3415.5,3415.1,1.55367298]
[1641485887870,3.10137848,3415.5,3415.4,0.05367298]
[1641485888073,3.10137848,3415.5,3415.4,0.51365498]
[1641485888273,3.10137848,3415.5,3415.4,2.51844498]
[1641485888872,3.10137848,3415.9,3415.4,2.51844498]
[1641485889073,3.10137848,3415.9,3415.4,2.464772]
[1641485889271,3.10137848,3415.9,3415.8,0.05367298]
[1641485889671,6.01183649,3415.9,3414.7,0.05367298]
[1641485889871,6.01183649,3415.9,3414.7,0.72793377]
[1641485889872,1.44632702,3415.4,3414.7,0.72793377]
[1641485890272,14.70479,3415.7,3414.7,0.72793377]
[1641485890472,1.46429392,3415.4,3415.1,0.05367298]
[1641485890772,1.46429392,3415.4,3414.7,0.72793377]
[1641485890972,14.70479,3415.7,3414.7,0.78160675]
[1641485891374,3.10137848,3415.3,3414.7,0.05367298]
[1641485891573,1.44632702,3414.8,3414.6,4.00958]